[Event "Late-Titled-Tuesday-Blitz-January-30-2024"]
[Site "Chess.com"]
[Date "2024.01.30"]
[Round "3"]
[White "RichardLeyvaP"]
[Black "jcibarra"]
[Result "0-1"]
[WhiteElo "2532"]
[BlackElo "2875"]
[TimeControl "180+1"]
[EndTime "14:29:33 PST"]
[Termination "jcibarra won on time"]

1. e4 {[%clk 0:03:00]} 1... Nc6 {[%clk 0:02:54.2]} 2. Nf3 {[%clk 0:02:59.2]}
2... d6 {[%clk 0:02:54.4]} 3. d4 {[%clk 0:02:58.2]} 3... Nf6 {[%clk 0:02:54.9]}
4. Nc3 {[%clk 0:02:57.8]} 4... g6 {[%clk 0:02:54.6]} 5. h3 {[%clk 0:02:56.5]}
5... Bg7 {[%clk 0:02:54.5]} 6. Bd3 {[%clk 0:02:54.8]} 6... O-O {[%clk
0:02:53.6]} 7. O-O {[%clk 0:02:54.9]} 7... e5 {[%clk 0:02:54.3]} 8. dxe5 {[%clk
0:02:51.4]} 8... dxe5 {[%clk 0:02:54.6]} 9. Be3 {[%clk 0:02:47.6]} 9... h6
{[%clk 0:02:50.7]} 10. Bb5 {[%clk 0:02:45.2]} 10... Qe7 {[%clk 0:02:42.2]} 11.
Bxc6 {[%clk 0:02:05.5]} 11... bxc6 {[%clk 0:02:42.4]} 12. Qe2 {[%clk 0:02:06.2]}
12... Qb4 {[%clk 0:02:34.1]} 13. Bc1 {[%clk 0:01:45.4]} 13... a5 {[%clk
0:02:28.4]} 14. a3 {[%clk 0:01:43.4]} 14... Qe7 {[%clk 0:02:24.8]} 15. Re1
{[%clk 0:01:41.1]} 15... Ba6 {[%clk 0:02:23.5]} 16. Qe3 {[%clk 0:01:41.2]} 16...
Rfd8 {[%clk 0:02:03]} 17. a4 {[%clk 0:01:40]} 17... Nh5 {[%clk 0:02:02.1]} 18.
b3 {[%clk 0:01:39.9]} 18... Nf4 {[%clk 0:01:58.7]} 19. Ba3 {[%clk 0:01:37]}
19... Qf6 {[%clk 0:01:59.3]} 20. Kh2 {[%clk 0:01:33]} 20... Bc8 {[%clk
0:01:49.1]} 21. Ne2 {[%clk 0:01:23.4]} 21... h5 {[%clk 0:01:42.3]} 22. Bb2
{[%clk 0:01:21.2]} 22... Qe7 {[%clk 0:01:38.3]} 23. Nxf4 {[%clk 0:01:16.4]}
23... exf4 {[%clk 0:01:36.9]} 24. Qc1 {[%clk 0:01:16.4]} 24... Bxb2 {[%clk
0:01:18.2]} 25. Qxb2 {[%clk 0:01:16.1]} 25... Qc5 {[%clk 0:01:19.1]} 26. Qf6
{[%clk 0:01:03.1]} 26... Qd6 {[%clk 0:01:17.3]} 27. Qg5 {[%clk 0:00:50.6]} 27...
Be6 {[%clk 0:01:03]} 28. e5 {[%clk 0:00:50.3]} 28... Qc5 {[%clk 0:01:03.3]} 29.
Qxf4 {[%clk 0:00:49.9]} 29... Qxf2 {[%clk 0:00:59.8]} 30. Rac1 {[%clk
0:00:48.5]} 30... Bd5 {[%clk 0:00:52]} 31. Rf1 {[%clk 0:00:48.3]} 31... Qe2
{[%clk 0:00:52.1]} 32. Rfe1 {[%clk 0:00:38.5]} 32... Qf2 {[%clk 0:00:52.3]} 33.
Rf1 {[%clk 0:00:34.2]} 33... Qc5 {[%clk 0:00:50.3]} 34. c4 {[%clk 0:00:26.2]}
34... Be6 {[%clk 0:00:40]} 35. Ng5 {[%clk 0:00:23.3]} 35... Qe7 {[%clk
0:00:40.4]} 36. Ne4 {[%clk 0:00:22.4]} 36... Kg7 {[%clk 0:00:38]} 37. Rf2 {[%clk
0:00:20.9]} 37... Rd4 {[%clk 0:00:34.5]} 38. Rc3 {[%clk 0:00:18.1]} 38... Bf5
{[%clk 0:00:33]} 39. Re3 {[%clk 0:00:18]} 39... Re8 {[%clk 0:00:33.2]} 40. g4
{[%clk 0:00:15.8]} 40... hxg4 {[%clk 0:00:30.7]} 41. hxg4 {[%clk 0:00:16.7]}
41... Bxe4 {[%clk 0:00:10.5]} 42. Rxe4 {[%clk 0:00:06]} 42... Rxe4 {[%clk
0:00:05.3]} 43. Qxe4 {[%clk 0:00:06.9]} 43... Qxe5+ {[%clk 0:00:05.8]} 44. Qxe5+
{[%clk 0:00:07.2]} 44... Rxe5 {[%clk 0:00:06.7]} 45. Rf3 {[%clk 0:00:07.9]}
45... f6 {[%clk 0:00:04.7]} 46. Kg3 {[%clk 0:00:08.8]} 46... c5 {[%clk 0:00:05]}
47. Rd3 {[%clk 0:00:08.9]} 47... Kh6 {[%clk 0:00:04.5]} 48. Kf4 {[%clk
0:00:08.9]} 48... g5+ {[%clk 0:00:03.7]} 49. Kf3 {[%clk 0:00:09.1]} 49... Re6
{[%clk 0:00:02.6]} 50. Rd7 {[%clk 0:00:08.6]} 50... Rb6 {[%clk 0:00:02.9]} 51.
Rd3 {[%clk 0:00:08.8]} 51... Kg6 {[%clk 0:00:02.1]} 52. Ke4 {[%clk 0:00:09.2]}
52... Re6+ {[%clk 0:00:01.9]} 53. Kd5 {[%clk 0:00:08.6]} 53... Rd6+ {[%clk
0:00:02.4]} 54. Ke4 {[%clk 0:00:09.2]} 54... Rxd3 {[%clk 0:00:02.9]} 55. Kxd3
{[%clk 0:00:10.1]} 55... f5 {[%clk 0:00:03.5]} 0-1

[Event "Late-Titled-Tuesday-Blitz-January-30-2024"]
[Site "Chess.com"]
[Date "2024.01.30"]
[Round "3"]
[White "PattyCastillo"]
[Black "JonasGallasch"]
[Result "0-1"]
[WhiteElo "1989"]
[BlackElo "2334"]
[TimeControl "180+1"]
[EndTime "14:29:34 PST"]
[Termination "JonasGallasch won on time"]

1. d4 {[%clk 0:02:59.8]} 1... Nf6 {[%clk 0:02:58.9]} 2. Nf3 {[%clk 0:02:59.6]}
2... e6 {[%clk 0:02:59]} 3. e3 {[%clk 0:02:58.4]} 3... c5 {[%clk 0:02:59.1]} 4.
Bd3 {[%clk 0:02:58.2]} 4... Nc6 {[%clk 0:02:56.4]} 5. b3 {[%clk 0:02:57.9]} 5...
Be7 {[%clk 0:02:46.4]} 6. Bb2 {[%clk 0:02:57.3]} 6... O-O {[%clk 0:02:47]} 7.
O-O {[%clk 0:02:57.1]} 7... a6 {[%clk 0:02:45.6]} 8. Nbd2 {[%clk 0:02:55.9]}
8... b5 {[%clk 0:02:45.5]} 9. c4 {[%clk 0:02:55.4]} 9... bxc4 {[%clk 0:02:44.6]}
10. bxc4 {[%clk 0:02:55.3]} 10... cxd4 {[%clk 0:02:44.6]} 11. exd4 {[%clk
0:02:55.3]} 11... a5 {[%clk 0:02:30.9]} 12. a3 {[%clk 0:02:54.7]} 12... Ba6
{[%clk 0:02:30.9]} 13. Qe2 {[%clk 0:02:53.2]} 13... h6 {[%clk 0:02:27.4]} 14.
Rfe1 {[%clk 0:02:49.3]} 14... a4 {[%clk 0:02:24.7]} 15. Rad1 {[%clk 0:02:23.1]}
15... Rb8 {[%clk 0:02:22.7]} 16. Rb1 {[%clk 0:02:12.7]} 16... d5 {[%clk
0:02:12.2]} 17. cxd5 {[%clk 0:02:04.1]} 17... Bxd3 {[%clk 0:02:12.1]} 18. Qxd3
{[%clk 0:02:04.5]} 18... Nxd5 {[%clk 0:02:12.5]} 19. Nc4 {[%clk 0:01:55.2]}
19... Na5 {[%clk 0:02:03.7]} 20. Nfe5 {[%clk 0:01:43.8]} 20... Rb3 {[%clk
0:01:58.6]} 21. Qd2 {[%clk 0:01:36.3]} 21... Nxc4 {[%clk 0:01:58.3]} 22. Nxc4
{[%clk 0:01:35.7]} 22... Bf6 {[%clk 0:01:38.5]} 23. Ne5 {[%clk 0:01:31.3]} 23...
Ne7 {[%clk 0:01:33.6]} 24. Ng4 {[%clk 0:01:24.1]} 24... Nd5 {[%clk 0:01:26.7]}
25. Ba1 {[%clk 0:01:11.6]} 25... Rxa3 {[%clk 0:01:21.9]} 26. Rb7 {[%clk
0:00:50.7]} 26... Rb3 {[%clk 0:01:14.3]} 27. Rb1 {[%clk 0:00:46.6]} 27... Rxb1+
{[%clk 0:01:09.9]} 28. Rxb1 {[%clk 0:00:46.1]} 28... Qc7 {[%clk 0:01:06.9]} 29.
h3 {[%clk 0:00:39.6]} 29... Rc8 {[%clk 0:01:04]} 30. Nxf6+ {[%clk 0:00:38]}
30... Nxf6 {[%clk 0:01:03.2]} 31. d5 {[%clk 0:00:38.1]} 31... Nxd5 {[%clk
0:01:01.2]} 32. Qd4 {[%clk 0:00:36.1]} 32... f6 {[%clk 0:00:58.5]} 33. Qxa4
{[%clk 0:00:35.1]} 33... Qc2 {[%clk 0:00:55.7]} 34. Qxc2 {[%clk 0:00:23.4]}
34... Rxc2 {[%clk 0:00:56.6]} 35. Bd4 {[%clk 0:00:23.3]} 35... e5 {[%clk
0:00:56.5]} 36. Ba7 {[%clk 0:00:21.9]} 36... Kh7 {[%clk 0:00:52.9]} 37. g3
{[%clk 0:00:22]} 37... Kg6 {[%clk 0:00:52.8]} 38. h4 {[%clk 0:00:21]} 38... Kf5
{[%clk 0:00:52.8]} 39. Kg2 {[%clk 0:00:18.9]} 39... Rc7 {[%clk 0:00:42.7]} 40.
Bb8 {[%clk 0:00:15.9]} 40... Rc4 {[%clk 0:00:40]} 41. Rb7 {[%clk 0:00:15.4]}
41... Rb4 {[%clk 0:00:37.1]} 42. Rxb4 {[%clk 0:00:12.3]} 42... Nxb4 {[%clk
0:00:37.1]} 43. Kf3 {[%clk 0:00:12.2]} 43... Nd5 {[%clk 0:00:34.8]} 44. g4+
{[%clk 0:00:12.3]} 44... Ke6 {[%clk 0:00:35.3]} 45. Ke4 {[%clk 0:00:11.9]} 45...
Ne7 {[%clk 0:00:33.7]} 46. Ba7 {[%clk 0:00:10.7]} 46... Nc8 {[%clk 0:00:33.5]}
47. Be3 {[%clk 0:00:08.3]} 47... Nd6+ {[%clk 0:00:33.8]} 48. Kf3 {[%clk
0:00:07.9]} 48... Kd5 {[%clk 0:00:32.6]} 49. Bb6 {[%clk 0:00:06.9]} 49... e4+
{[%clk 0:00:27.2]} 50. Ke2 {[%clk 0:00:06.7]} 50... g6 {[%clk 0:00:24.2]} 51.
Bd8 {[%clk 0:00:05.1]} 51... f5 {[%clk 0:00:19.8]} 52. gxf5 {[%clk 0:00:04.8]}
52... gxf5 {[%clk 0:00:14.7]} 53. Be7 {[%clk 0:00:04.3]} 53... h5 {[%clk
0:00:14]} 54. f3 {[%clk 0:00:02.1]} 54... Ke5 {[%clk 0:00:09.8]} 0-1

[Event "Late-Titled-Tuesday-Blitz-January-30-2024"]
[Site "Chess.com"]
[Date "2024.01.30"]
[Round "3"]
[White "wadsy27"]
[Black "penguingm1"]
[Result "1-0"]
[WhiteElo "2628"]
[BlackElo "2863"]
[TimeControl "180+1"]
[EndTime "14:29:36 PST"]
[Termination "wadsy27 won by checkmate"]

1. c4 {[%clk 0:03:00.9]} 1... e6 {[%clk 0:02:59.4]} 2. g3 {[%clk 0:03:01]} 2...
d5 {[%clk 0:02:59.2]} 3. Bg2 {[%clk 0:03:01.7]} 3... Nf6 {[%clk 0:02:58.9]} 4.
Nf3 {[%clk 0:03:02.3]} 4... Be7 {[%clk 0:02:58.4]} 5. O-O {[%clk 0:03:02.5]}
5... O-O {[%clk 0:02:59.2]} 6. b3 {[%clk 0:03:02.6]} 6... c5 {[%clk 0:02:59.7]}
7. cxd5 {[%clk 0:03:02.2]} 7... Nxd5 {[%clk 0:03:00.6]} 8. Bb2 {[%clk 0:03:02]}
8... b6 {[%clk 0:03:01.3]} 9. d4 {[%clk 0:03:02.3]} 9... Bb7 {[%clk 0:03:01.9]}
10. dxc5 {[%clk 0:03:01.2]} 10... Bxc5 {[%clk 0:03:02.8]} 11. Nbd2 {[%clk
0:02:57.5]} 11... Nd7 {[%clk 0:03:02.9]} 12. Ne4 {[%clk 0:02:55.1]} 12... Be7
{[%clk 0:03:03]} 13. Qd4 {[%clk 0:02:51.8]} 13... N7f6 {[%clk 0:02:59.9]} 14.
Ne5 {[%clk 0:02:35.5]} 14... Rc8 {[%clk 0:02:54.7]} 15. Rac1 {[%clk 0:02:34.4]}
15... Rc7 {[%clk 0:02:54.3]} 16. Rxc7 {[%clk 0:02:31.5]} 16... Nxc7 {[%clk
0:02:47.7]} 17. Nxf6+ {[%clk 0:01:47.1]} 17... gxf6 {[%clk 0:02:47.5]} 18. Bxb7
{[%clk 0:01:47]} 18... Qxd4 {[%clk 0:02:45.1]} 19. Bxd4 {[%clk 0:01:45.6]} 19...
fxe5 {[%clk 0:02:45.8]} 20. Bxe5 {[%clk 0:01:45.6]} 20... Nb5 {[%clk 0:02:45.6]}
21. Rd1 {[%clk 0:01:35.5]} 21... f6 {[%clk 0:02:45.6]} 22. Rd7 {[%clk
0:01:20.3]} 22... Kf7 {[%clk 0:02:41]} 23. Bb2 {[%clk 0:01:14.5]} 23... Rd8
{[%clk 0:02:18.6]} 24. Rxd8 {[%clk 0:01:10.6]} 24... Bxd8 {[%clk 0:02:18.1]} 25.
Be4 {[%clk 0:01:09.3]} 25... f5 {[%clk 0:02:09.6]} 26. Bd3 {[%clk 0:01:08.9]}
26... Nd6 {[%clk 0:02:09.9]} 27. f4 {[%clk 0:01:04.1]} 27... Be7 {[%clk
0:02:07.2]} 28. Kg2 {[%clk 0:01:02.6]} 28... Nb7 {[%clk 0:02:07.1]} 29. Kf3
{[%clk 0:01:00]} 29... Nc5 {[%clk 0:02:07.6]} 30. Bc2 {[%clk 0:00:57.7]} 30...
Bf6 {[%clk 0:01:49.4]} 31. Bxf6 {[%clk 0:00:57.2]} 31... Kxf6 {[%clk 0:01:50.3]}
32. e4 {[%clk 0:00:57.4]} 32... h6 {[%clk 0:01:49.7]} 33. h3 {[%clk 0:00:53.1]}
33... h5 {[%clk 0:01:49.5]} 34. b4 {[%clk 0:00:48.5]} 34... Na6 {[%clk
0:01:42.6]} 35. a3 {[%clk 0:00:43.4]} 35... Nc7 {[%clk 0:01:42.9]} 36. exf5
{[%clk 0:00:29]} 36... exf5 {[%clk 0:01:43.1]} 37. Ke3 {[%clk 0:00:20.9]} 37...
Nb5 {[%clk 0:01:27]} 38. Bd3 {[%clk 0:00:20.3]} 38... Nc7 {[%clk 0:01:02.5]} 39.
Kd4 {[%clk 0:00:19.2]} 39... Ne6+ {[%clk 0:01:02.1]} 40. Ke3 {[%clk 0:00:18.8]}
40... Nc7 {[%clk 0:01:02]} 41. Be2 {[%clk 0:00:16.1]} 41... Kg6 {[%clk
0:00:59.3]} 42. Kd4 {[%clk 0:00:13.5]} 42... h4 {[%clk 0:00:44.7]} 43. gxh4
{[%clk 0:00:12.9]} 43... Kf6 {[%clk 0:00:45.2]} 44. h5 {[%clk 0:00:12.7]} 44...
Ne6+ {[%clk 0:00:44.9]} 45. Ke3 {[%clk 0:00:12.7]} 45... Nc7 {[%clk 0:00:45.5]}
46. h4 {[%clk 0:00:11.7]} 46... Nd5+ {[%clk 0:00:45.4]} 47. Kf3 {[%clk
0:00:09.7]} 47... Nc3 {[%clk 0:00:43.6]} 48. Bd3 {[%clk 0:00:09.3]} 48... Nd5
{[%clk 0:00:43.9]} 49. h6 {[%clk 0:00:08.2]} 49... Ne7 {[%clk 0:00:41]} 50. h5
{[%clk 0:00:07.6]} 50... Kf7 {[%clk 0:00:38.3]} 51. Ke3 {[%clk 0:00:07.5]} 51...
Nd5+ {[%clk 0:00:38.4]} 52. Kf3 {[%clk 0:00:06.8]} 52... Ne7 {[%clk 0:00:38.6]}
53. Kg3 {[%clk 0:00:06.9]} 53... a5 {[%clk 0:00:34.8]} 54. bxa5 {[%clk
0:00:06.1]} 54... bxa5 {[%clk 0:00:35.7]} 55. Kh4 {[%clk 0:00:05.6]} 55... Kf6
{[%clk 0:00:35.9]} 56. h7 {[%clk 0:00:05.3]} 56... Kg7 {[%clk 0:00:36.5]} 57.
Kg5 {[%clk 0:00:05.4]} 57... Nd5 {[%clk 0:00:32.2]} 58. Bxf5 {[%clk 0:00:05.5]}
58... Nc3 {[%clk 0:00:24.9]} 59. Bg6 {[%clk 0:00:05.7]} 59... a4 {[%clk
0:00:16.1]} 60. Bc2 {[%clk 0:00:04.7]} 60... Nb5 {[%clk 0:00:15.5]} 61. f5
{[%clk 0:00:04.6]} 61... Kxh7 {[%clk 0:00:12.8]} 62. f6+ {[%clk 0:00:04.4]}
62... Kg8 {[%clk 0:00:13.5]} 63. Bxa4 {[%clk 0:00:04.4]} 63... Nxa3 {[%clk
0:00:14.1]} 64. h6 {[%clk 0:00:04.4]} 64... Nb1 {[%clk 0:00:11.2]} 65. Bb3+
{[%clk 0:00:04.7]} 65... Kh8 {[%clk 0:00:11.3]} 66. f7 {[%clk 0:00:05.1]} 66...
Kh7 {[%clk 0:00:11.9]} 67. f8=Q {[%clk 0:00:05.4]} 67... Nc3 {[%clk 0:00:12.8]}
68. Qg7# {[%clk 0:00:05.8]} 1-0

[Event "Late-Titled-Tuesday-Blitz-January-30-2024"]
[Site "Chess.com"]
[Date "2024.01.30"]
[Round "3"]
[White "Actuary44"]
[Black "Sl4werThanYou"]
[Result "1-0"]
[WhiteElo "2489"]
[BlackElo "2613"]
[TimeControl "180+1"]
[EndTime "14:29:39 PST"]
[Termination "Actuary44 won by checkmate"]

1. e4 {[%clk 0:03:00.9]} 1... e6 {[%clk 0:02:54.9]} 2. d4 {[%clk 0:03:00.8]}
2... d5 {[%clk 0:02:55.4]} 3. Nc3 {[%clk 0:03:01.3]} 3... Bb4 {[%clk 0:02:55.6]}
4. e5 {[%clk 0:03:01.6]} 4... Qd7 {[%clk 0:02:52.6]} 5. f4 {[%clk 0:03:01.5]}
5... c5 {[%clk 0:02:52.3]} 6. Nf3 {[%clk 0:02:59.2]} 6... Nc6 {[%clk 0:02:49]}
7. dxc5 {[%clk 0:02:57.8]} 7... Bxc5 {[%clk 0:02:45.2]} 8. Bd3 {[%clk
0:02:57.6]} 8... Nge7 {[%clk 0:02:43.1]} 9. Qe2 {[%clk 0:02:57]} 9... a6 {[%clk
0:02:32.3]} 10. a3 {[%clk 0:02:55.9]} 10... b5 {[%clk 0:02:32.3]} 11. Bd2 {[%clk
0:02:53.2]} 11... Bb7 {[%clk 0:02:31.7]} 12. O-O-O {[%clk 0:02:52.4]} 12... h6
{[%clk 0:02:26.8]} 13. Kb1 {[%clk 0:02:50.1]} 13... O-O-O {[%clk 0:02:26.4]} 14.
g4 {[%clk 0:02:32.3]} 14... Kb8 {[%clk 0:02:23.9]} 15. Rhe1 {[%clk 0:02:30.9]}
15... Qc7 {[%clk 0:02:20.1]} 16. f5 {[%clk 0:02:29.4]} 16... Nd4 {[%clk
0:02:18.5]} 17. Nxd4 {[%clk 0:02:26.8]} 17... Bxd4 {[%clk 0:02:19.4]} 18. Na2
{[%clk 0:02:16.9]} 18... Nc6 {[%clk 0:02:18]} 19. Bf4 {[%clk 0:02:11.2]} 19...
Bc5 {[%clk 0:02:18.3]} 20. c3 {[%clk 0:02:03]} 20... Qb6 {[%clk 0:02:12.8]} 21.
Nb4 {[%clk 0:02:00.9]} 21... Na5 {[%clk 0:02:13.5]} 22. f6 {[%clk 0:01:55.1]}
22... g5 {[%clk 0:02:12.8]} 23. Bc1 {[%clk 0:01:50.5]} 23... Nc4 {[%clk
0:02:12.3]} 24. b3 {[%clk 0:01:46.8]} 24... Na5 {[%clk 0:02:10.1]} 25. Ka2
{[%clk 0:01:46]} 25... Rc8 {[%clk 0:02:10.1]} 26. Nc2 {[%clk 0:01:36]} 26... Bf8
{[%clk 0:02:07]} 27. Be3 {[%clk 0:01:27.3]} 27... Qc7 {[%clk 0:02:07.4]} 28. Bd4
{[%clk 0:01:26.2]} 28... Nc6 {[%clk 0:02:08]} 29. Bf2 {[%clk 0:01:24.5]} 29...
Na5 {[%clk 0:02:06.6]} 30. Qe3 {[%clk 0:01:16.6]} 30... Nc6 {[%clk 0:01:48.4]}
31. Nb4 {[%clk 0:01:13.9]} 31... Bxb4 {[%clk 0:01:47.9]} 32. cxb4 {[%clk
0:01:10.2]} 32... d4 {[%clk 0:01:44.4]} 33. Qe2 {[%clk 0:01:03.5]} 33... Rhd8
{[%clk 0:01:39.5]} 34. Rc1 {[%clk 0:01:03.3]} 34... Qb6 {[%clk 0:01:31.3]} 35.
Rc5 {[%clk 0:01:02.7]} 35... Rc7 {[%clk 0:01:27.9]} 36. Rec1 {[%clk 0:01:02.5]}
36... Rdc8 {[%clk 0:01:28.5]} 37. h4 {[%clk 0:01:02]} 37... Rd7 {[%clk
0:01:18.5]} 38. hxg5 {[%clk 0:01:01.2]} 38... hxg5 {[%clk 0:01:19.4]} 39. Qd2
{[%clk 0:00:49.8]} 39... Rg8 {[%clk 0:01:14.1]} 40. Bh7 {[%clk 0:00:32.1]} 40...
Rh8 {[%clk 0:01:13.4]} 41. Qxg5 {[%clk 0:00:32]} 41... a5 {[%clk 0:01:05]} 42.
Bd3 {[%clk 0:00:27.7]} 42... axb4 {[%clk 0:00:50.4]} 43. Rxb5 {[%clk 0:00:27.3]}
43... Qa7 {[%clk 0:00:51.1]} 44. a4 {[%clk 0:00:24.8]} 44... Rc8 {[%clk
0:00:44.1]} 45. Be4 {[%clk 0:00:22.9]} 45... Ka8 {[%clk 0:00:44.2]} 46. Qd2
{[%clk 0:00:22]} 46... Rcc7 {[%clk 0:00:32.2]} 47. g5 {[%clk 0:00:20.1]} 47...
Nd8 {[%clk 0:00:21.9]} 48. Rxc7 {[%clk 0:00:15.7]} 48... Rxc7 {[%clk 0:00:22.8]}
49. Bxb7+ {[%clk 0:00:13.7]} 49... Nxb7 {[%clk 0:00:20.5]} 50. Bxd4 {[%clk
0:00:12.4]} 50... Qb8 {[%clk 0:00:20.9]} 51. Qxb4 {[%clk 0:00:11.9]} 51... Rc2+
{[%clk 0:00:19.9]} 52. Ka3 {[%clk 0:00:12.2]} 52... Qc8 {[%clk 0:00:16.9]} 53.
Ra5+ {[%clk 0:00:11.6]} 53... Kb8 {[%clk 0:00:13.7]} 54. Ba7+ {[%clk 0:00:10]}
54... Kc7 {[%clk 0:00:14.3]} 55. Qb6+ {[%clk 0:00:09.3]} 55... Kd7 {[%clk
0:00:15]} 56. Rb5 {[%clk 0:00:09.4]} 56... Rc7 {[%clk 0:00:08.5]} 57. Qd4+
{[%clk 0:00:09.5]} 57... Ke8 {[%clk 0:00:09.3]} 58. Bb6 {[%clk 0:00:09.3]} 58...
Rd7 {[%clk 0:00:09.3]} 59. Qc4 {[%clk 0:00:09.1]} 59... Qa8 {[%clk 0:00:08.9]}
60. g6 {[%clk 0:00:08]} 60... Nd8 {[%clk 0:00:03.3]} 61. g7 {[%clk 0:00:08.1]}
61... Rd1 {[%clk 0:00:02.1]} 62. g8=Q+ {[%clk 0:00:08.1]} 62... Kd7 {[%clk
0:00:03]} 63. Qc7# {[%clk 0:00:06.9]} 1-0

[Event "Late-Titled-Tuesday-Blitz-January-30-2024"]
[Site "Chess.com"]
[Date "2024.01.30"]
[Round "3"]
[White "maurovargas01"]
[Black "masnyszachistaaa"]
[Result "0-1"]
[WhiteElo "1856"]
[BlackElo "2543"]
[TimeControl "180+1"]
[EndTime "14:29:41 PST"]
[Termination "masnyszachistaaa won on time"]

1. e4 {[%clk 0:02:59.9]} 1... c5 {[%clk 0:02:50.3]} 2. Nc3 {[%clk 0:02:56.8]}
2... Nc6 {[%clk 0:02:43.6]} 3. f4 {[%clk 0:02:56.2]} 3... d6 {[%clk 0:02:39.5]}
4. Nf3 {[%clk 0:02:57.1]} 4... g6 {[%clk 0:02:39.6]} 5. Bb5 {[%clk 0:02:57.4]}
5... Bd7 {[%clk 0:02:37.4]} 6. Bxc6 {[%clk 0:02:58.3]} 6... Bxc6 {[%clk
0:02:38.3]} 7. d3 {[%clk 0:02:58.8]} 7... Bg7 {[%clk 0:02:38.5]} 8. O-O {[%clk
0:02:59.7]} 8... e6 {[%clk 0:02:36.2]} 9. Bd2 {[%clk 0:03:00]} 9... Ne7 {[%clk
0:02:36.4]} 10. Qe1 {[%clk 0:02:59.4]} 10... O-O {[%clk 0:02:33.2]} 11. Qh4
{[%clk 0:02:58.4]} 11... f6 {[%clk 0:02:26.5]} 12. f5 {[%clk 0:02:57.4]} 12...
exf5 {[%clk 0:02:25]} 13. exf5 {[%clk 0:02:48.5]} 13... Nxf5 {[%clk 0:02:25.9]}
14. Qh3 {[%clk 0:02:48.5]} 14... Bd7 {[%clk 0:02:23]} 15. g4 {[%clk 0:02:48]}
15... Ne7 {[%clk 0:02:12.8]} 16. Rae1 {[%clk 0:02:45.3]} 16... Nc6 {[%clk
0:02:04.4]} 17. Qg3 {[%clk 0:02:43.6]} 17... Ne5 {[%clk 0:02:03.8]} 18. h3
{[%clk 0:02:37.3]} 18... Nxf3+ {[%clk 0:02:02.7]} 19. Rxf3 {[%clk 0:02:35.9]}
19... Bc6 {[%clk 0:02:02.5]} 20. Rfe3 {[%clk 0:02:34]} 20... Re8 {[%clk
0:01:59.7]} 21. Re6 {[%clk 0:02:25.2]} 21... Rxe6 {[%clk 0:01:37.3]} 22. Rxe6
{[%clk 0:02:24.1]} 22... d5 {[%clk 0:01:38]} 23. Bf4 {[%clk 0:01:59.6]} 23...
Qd7 {[%clk 0:01:23.2]} 24. Qe1 {[%clk 0:01:56.6]} 24... d4 {[%clk 0:01:00.8]}
25. Rd6 {[%clk 0:01:47]} 25... Qe8 {[%clk 0:00:58.1]} 26. Ne4 {[%clk 0:01:40.1]}
26... Bxe4 {[%clk 0:00:52.4]} 27. dxe4 {[%clk 0:01:37.7]} 27... Rd8 {[%clk
0:00:49.8]} 28. Kg2 {[%clk 0:01:20.4]} 28... b6 {[%clk 0:00:46.2]} 29. Kf3
{[%clk 0:01:17.1]} 29... Rxd6 {[%clk 0:00:46]} 30. Bxd6 {[%clk 0:01:16.2]} 30...
Qe6 {[%clk 0:00:46.6]} 31. Bg3 {[%clk 0:01:08.6]} 31... Qxa2 {[%clk 0:00:45.6]}
32. Qc1 {[%clk 0:00:59.8]} 32... Qc4 {[%clk 0:00:24.5]} 33. Qf4 {[%clk 0:00:50]}
33... Qf7 {[%clk 0:00:17.7]} 34. Qb8+ {[%clk 0:00:48.4]} 34... Bf8 {[%clk
0:00:17.5]} 35. b3 {[%clk 0:00:43.7]} 35... Kg7 {[%clk 0:00:17.4]} 36. Bc7
{[%clk 0:00:33.7]} 36... Qd7 {[%clk 0:00:16]} 37. Qxa7 {[%clk 0:00:28]} 37... b5
{[%clk 0:00:15.3]} 38. Bb6 {[%clk 0:00:24.2]} 38... Qxa7 {[%clk 0:00:15]} 39.
Bxa7 {[%clk 0:00:23.8]} 39... Kf7 {[%clk 0:00:15.5]} 40. Kf4 {[%clk 0:00:20.8]}
40... Ke6 {[%clk 0:00:15.7]} 41. Bb6 {[%clk 0:00:17.9]} 41... Bd6+ {[%clk
0:00:15.8]} 42. Kf3 {[%clk 0:00:16.4]} 42... Kd7 {[%clk 0:00:16.4]} 43. Ba5
{[%clk 0:00:13.8]} 43... b4 {[%clk 0:00:16.4]} 44. Ke2 {[%clk 0:00:11.7]} 44...
Be7 {[%clk 0:00:04.2]} 45. Kd3 {[%clk 0:00:10.3]} 45... Kd6 {[%clk 0:00:03.5]}
46. Kc4 {[%clk 0:00:10.3]} 46... Kc6 {[%clk 0:00:04.1]} 47. h4 {[%clk 0:00:07]}
47... Bd6 {[%clk 0:00:03.5]} 48. h5 {[%clk 0:00:05.9]} 48... gxh5 {[%clk
0:00:03.6]} 49. gxh5 {[%clk 0:00:05.7]} 49... Be7 {[%clk 0:00:04]} 50. Kd3
{[%clk 0:00:04]} 50... Kb5 {[%clk 0:00:04.3]} 51. Bc7 {[%clk 0:00:03.4]} 51...
Bf8 {[%clk 0:00:04.8]} 52. Bf4 {[%clk 0:00:02.7]} 52... Be7 {[%clk 0:00:04.8]}
53. Ke2 {[%clk 0:00:02.2]} 53... Bd8 {[%clk 0:00:05.2]} 54. Kf3 {[%clk
0:00:02.2]} 54... c4 {[%clk 0:00:05.7]} 55. bxc4+ {[%clk 0:00:01.8]} 55... Kxc4
{[%clk 0:00:06.6]} 56. Bd2 {[%clk 0:00:01.2]} 56... Bc7 {[%clk 0:00:06.2]} 0-1